Cogmind - Beta 12 @@@ ROGUE MODE // 2023.08.10 @ 13:16:26 // Winter2019/RPGLIKE Player: Kersh Result: Destroyed by as-56935 with Assembled Rifle Performance ------------- Evolutions (0) 0 Regions Visited (2) 400 Robots Destroyed (9) 45 Value Destroyed (128) 128 Prototype IDs (1) 20 Alien Tech Used (0) 0 Bonus (-38) -38 TOTAL SCORE: 555 Bonus ------- Friendly Fire -38 Cogmind --------- Core Integrity 0/600 Matter 170/300 Energy 280/280 System Corruption 3% Temperature Cool (0) Movement Walking (120) Location -10/Mines Parts ------- > --- POWER (1) -------- Heavy Ion Engine > --- PROPULSION (2) --- Improved Aluminum Leg Improved Aluminum Leg > --- UTILITY (2) ------ Structural Scanner Visual Processing Unit > --- WEAPON (1) ------- Grenade Launcher > --- INVENTORY (2) ---- Heavy Ion Engine Improved Aluminum Leg Peak State ------------ > --- POWER ------------ Heavy Ion Engine > --- PROPULSION ------- Improved Aluminum Leg Improved Aluminum Leg > --- UTILITY ---------- Structural Scanner Visual Processing Unit > --- WEAPON ----------- Grenade Launcher > --- INVENTORY -------- Ion Engine Light Treads [Rating: 11] Favorites ----------- Power Ion Engine Engine Ion Engine Propulsion Aluminum Leg Leg Aluminum Leg Utility Visual Processing Unit Device Structural Scanner Processor Visual Processing Unit Weapon Assault Rifle Ballistic Gun Assault Rifle Launcher Grenade Launcher Build | -11 -10 -10 ------- Run | Jun Mat Min Slots Evolved 2 | 2 . . Power . | . . . Propulsion 1 | 1 . . Utility 1 | 1 . . Weapon . | . . . Parts Attached 11 | 5 6 . Power 2 | 1 1 . Engine 2 | 1 1 . Core . | . . . Reactor . | . . . Propulsion 4 | 2 2 . Treads . | . . . Leg 4 | 2 2 . Wheel . | . . . Hover . | . . . Flight . | . . . Utility 3 | 1 2 . Device 2 | 1 1 . Storage . | . . . Processor 1 | . 1 . Hackware . | . . . Protection . | . . . Artifact . | . . . Weapon 2 | 1 1 . Energy Gun . | . . . Energy Cannon . | . . . Ballistic Gun 1 | 1 . . Ballistic Cannon . | . . . Launcher 1 | . 1 . Special Weapon . | . . . Impact Weapon . | . . . Slashing Weapon . | . . . Piercing Weapon . | . . . Special Melee Weapon . | . . . Unidentified Prototypes 1 | . 1 . Parts Lost . | . . . Power . | . . . Propulsion . | . . . Utility . | . . . Weapon . | . . . Highest Loss Streak . | . . . To Critical Strikes . | . . . Average Slot Usage (%) 98 | . 97 100 Engine 16 | . 16 16 Leg 33 | . 33 33 Device 16 | . 16 16 Processor 14 | . 13 16 Ballistic Gun 9 | . 11 . Launcher 6 | . 4 16 Naked Turns . | . . . Heaviest Build 12 | 8 12 12 Greatest Support 26 | 20 26 26 Greatest Overweight (x) . | . . . Average Overweight (x) . | . . . Largest Inventory Capacity 2 | 2 2 2 Average Capacity 2 | 2 2 2 Most Carried 2 | 2 2 2 Average Carried 1 | 1 1 2 Final Capacity 2 | 2 2 2 Final Carried 2 | 2 2 2 Class Distribution -------------------- 100% | Mutant Dominant Class ---------------- Mutant | -10/Materials Mutant | -10/Mines Resources | -11 -10 -10 ----------- Run | Jun Mat Min Matter Collected 399 | 283 116 . Remotely . | . . . Salvage Created 306 | 67 225 14 Parts 15 | 3 12 . Haulers Intercepted . | . . . Recyclers Shooed . | . . . Parts Field Recycled . | . . . Retrieved Matter . | . . . Parts Self-Destructed . | . . . Prevented . | . . . Kills | -11 -10 -10 ------- Run | Jun Mat Min Combat Hostiles Destroyed 15 | . 5 10 Guns 5 | . 5 . AOE 10 | . . 10 Classes Destroyed 7 | 2 4 1 Worker 1 | . 1 . Tunneler 1 | 1 . . Recycler 1 | 1 . . Watcher 1 | . 1 . Swarmer 3 | . 3 . Grunt 2 | . 2 . Assembled 10 | . . 10 Best Kill Streak 10 | 2 5 10 Combat Bots Only 10 | . 4 10 Max Kills in Single Turn 4 | 1 1 4 Gunslinging . | . . . Exploded 4 | . . 4 Melee . | . . . Uniques/NPCs Destroyed . | . . . Combat | -11 -10 -10 -------- Run | Jun Mat Min Damage Taken 733 | . 209 524 Core 602 | . 164 438 Absorbed by Shields . | . . . Redirected to Core 412 | . 135 277 Core Remaining (%) 100 | 100 . . Volleys Fired 52 | 11 32 9 Largest 1 | 1 1 1 Hottest 30 | 20 20 30 Shots Fired 52 | 11 32 9 Gun 43 | 11 32 . Cannon . | . . . Launcher 9 | . . 9 Special . | . . . Kinetic 43 | 11 32 . Thermal . | . . . Explosive 9 | . . 9 Electromagnetic . | . . . Robot Hit Streak 9 | 3 9 4 Robot Miss Streak 3 | 1 3 1 Penetration Max . | . . . Secondary Targets . | . . . Shots Hit Robots 33 | 7 20 6 Core Hits 39 | 3 7 29 Critical Kills . | . . . Critical Parts Destroyed . | . . . Critical Strikes . | . . . Melee Attacks . | . . . Impact . | . . . Slashing . | . . . Piercing . | . . . Sneak Attacks . | . . . Combat Hostiles . | . . . Follow-up Attacks . | . . . Damage Inflicted 1044 | 83 282 679 Guns 365 | 83 282 . Cannons . | . . . Explosions 679 | . . 679 Melee . | . . . Ramming . | . . . Kinetic 365 | 83 282 . Thermal . | . . . Explosive 679 | . . 679 Electromagnetic . | . . . Impact . | . . . Slashing . | . . . Piercing . | . . . Highest Corruption 3 | . 3 3 Average Corruption 2 | . 2 3 Corruption Purged . | . . . Corruption Blocked . | . . . Effects 2 | . 1 1 Message Errors 1 | . . 1 Energy Discharges 1 | . 1 . Overload Shots . | . . . Overflow Damage 8 | . . 8 Projectiles . | . . . Explosions 8 | . . 8 Melee . | . . . Knockbacks . | . . . Impact . | . . . Kinetic . | . . . Secondary . | . . . Self-Inflicted Damage 50 | . . 50 Shots 4 | . . 4 Rammed . | . . . Targets Rammed . | . . . Kicked . | . . . Crushed . | . . . Highest Temperature 16 | . . 16 Average Temperature 10 | . . 10 Received Heat Transfer 104 | . 84 20 Siege Activations . | . . . Robots Corrupted . | . . . Combat Hostiles . | . . . Parts Fried . | . . . Impact Corruptions . | . . . Robots Melted . | . . . Combat Hostiles . | . . . Parts Melted . | . . . Heat Transferred . | . . . Parts Sabotaged . | . . . Parts Stolen . | . . . Parts Stripped . | . . . Power Chain Reactions . | . . . Missiles Intercepted . | . . . Alert | -11 -10 -10 ------- Run | Jun Mat Min Peak Influence 143 | 10 143 85 Initial 55 | . 6 55 Average 66 | 3 83 60 Maximum Alert Level . | . . . Low Security (%) 100 | 100 100 100 Level 1 . | . . . Level 2 . | . . . Level 3 . | . . . Level 4 . | . . . Level 5 . | . . . High Security . | . . . Max Security . | . . . Squads Dispatched 1 | . 1 . Investigation . | . . . Extermination . | . . . Reinforcement 1 | . 1 . Assault . | . . . Garrison . | . . . Intercept . | . . . Searches Triggered . | . . . Construction Impeded . | . . . Haulers Reinforced . | . . . Active Scanning Responses . | . . . Cargo Convoy Interrupts . | . . . Stealth | -11 -10 -10 --------- Run | Jun Mat Min Distress Signals . | . . . Communications Jammed . | . . . Distress Signals . | . . . Times Spotted 25 | . 9 16 Peak Tracking Total 13 | . 5 13 Tactical Retreats . | . . . Traps | -11 -10 -10 ------- Run | Jun Mat Min Traps Triggered 3 | . 3 . Indirectly . | . . . Trap Hack Attempts . | . . . Triggered . | . . . Disarmed . | . . . Reprogrammed . | . . . Reused . | . . . Traps Extracted . | . . . Installed . | . . . Triggered . | . . . Machines | -11 -10 -10 ---------- Run | Jun Mat Min Machines Disabled . | . . . Max in Single Turn . | . . . Machines Repaired . | . . . Machines Sabotaged . | . . . Overloaded Fab Kills . | . . . Hacking | -11 -10 -10 --------- Run | Jun Mat Min Machines Accessed 2 | . 2 . Terminals 2 | . 2 . Fabricators . | . . . Repair Stations . | . . . Recycling Units . | . . . Scanalyzers . | . . . Garrison Access . | . . . Total Hacks 5 | . 5 . Successful 2 | . 2 . Failed 3 | . 3 . Catastrophic . | . . . Database Lockouts . | . . . Manual . | . . . Terminals 5 | . 5 . Fabricators . | . . . Repair Stations . | . . . Recycling Units . | . . . Scanalyzers . | . . . Garrison Access . | . . . Terminal Hacks 2 | . 2 . Alert Level 1 | . 1 . Hauler Manifests 1 | . 1 . Fabricator Hacks . | . . . Repair Station Hacks . | . . . Recycling Unit Hacks . | . . . Scanalyzer . | . . . Garrison Access Hacks . | . . . Unauthorized Hacks . | . . . Terminals . | . . . Fabricators . | . . . Repair Stations . | . . . Recycling Units . | . . . Scanalyzers . | . . . Garrison Access . | . . . Data Cores Recovered . | . . . Used . | . . . Hacking Detections 1 | . 1 . Full Trace Events . | . . . Feedback Events . | . . . Feedback Blocked . | . . . Robot Schematics Acquired . | . . . Robots Built . | . . . Authchips . | . . . Time . | . . . Total Robot Build Rating . | . . . Part Schematics Acquired . | . . . Parts Built . | . . . Authchips . | . . . Time . | . . . Total Part Build Rating . | . . . Parts Repaired . | . . . Time . | . . . Parts Recycled . | . . . Recycled Matter . | . . . Retrieved Matter . | . . . Retrieved Components . | . . . Parts Scanalyzed . | . . . Part Schematics Acquired . | . . . Parts Damaged . | . . . Bothacking | -11 -10 -10 ------------ Run | Jun Mat Min Used RIF Installer . | . . . Robots Hacked . | . . . Non-combat . | . . . Combat . | . . . Robot Hacks Applied . | . . . Relay Couplers Released . | . . . Fabnet Peak Effective % . | . . . Robots Rewired . | . . . Allies Hacked . | . . . Hacks Repelled . | . . . Allies | -11 -10 -10 -------- Run | Jun Mat Min Total Allies . | . . . Largest Group . | . . . Highest-Rated Group . | . . . Highest-Rated Ally . | . . . Total Orders . | . . . Ally Attacks . | . . . Total Damage . | . . . Kills . | . . . Allies Corrupted . | . . . Allies Melted . | . . . Intel | -11 -10 -10 ------- Run | Jun Mat Min Robot Analysis Total . | . . . Derelict Logs Recovered . | . . . Drone Launches . | . . . Drone Recoveries . | . . . Exploration | -11 -10 -10 ------------- Run | Jun Mat Min Turns Passed 548 | 94 391 63 Spaces Moved 355 | 55 262 38 Core 4 | 4 . . Treads . | . . . Legs 351 | 51 262 38 Wheels . | . . . Hover . | . . . Flight . | . . . Fastest Speed 50 | 50 120 120 Average Speed 119 | 114 120 120 Slowest Speed 120 | 120 120 120 Overloaded Moves . | . . . Propulsion Burnouts . | . . . Robots Hopped . | . . . Cave-ins Triggered . | . . . Exploration Rate (%) 19 | 5 37 17 Regions Visited 2 Branch Regions 1 Pre-discovered Areas . | . . . Known Exits Taken . | . . . Unknown Exits Taken 2 | 1 1 . Scrap Searched . | . . . Spaces Dug . | . . . Terrain Destroyed 36 | . . 36 Melee . | . . . Projectile . | . . . AOE 36 | . . 36 Terrain Rammed . | . . . Walls Destroyed . | . . . Machines Disabled . | . . . Actions | -11 -10 -10 --------- Run | Jun Mat Min Total 427 | 72 308 47 Wait . | . . . Move 353 | 54 261 38 Hop . | . . . Pick Up 4 | 2 2 . Fast Attach 9 | 5 4 . Attach . | . . . Detach . | . . . Swap 2 | . 2 . Drop 7 | . 7 . Fire 52 | 11 32 9 Melee . | . . . Ram . | . . . Kick . | . . . Crush . | . . . Escape Stasis . | . . . Rewire . | . . . Trap . | . . . Miscellaneous . | . . . Route ------- -11/Junkyard -10/Materials (discovered 2 exits: [*Mat] / [*Min]) -10/Mines History --------- Turn | Location | Event 1 | -11/Junkyard | Upgraded with Propulsion slot (x1) 1 | -11/Junkyard | Upgraded with Utility slot (x1) 22 | -11/Junkyard | Discovered new exit (range 16) 95 | -11/Junkyard | Entered Materials 110 | -10/Materials | Discovered new exit (range 16) 306 | -10/Materials | Discovered new exit (range 17) 307 | -10/Materials | Build established: Mutant 486 | -10/Materials | Entered Mines 522 | -10/Mines | Assembled infested the area 527 | -10/Mines | Assisted by a Guerilla fighting off Assembled 545 | -10/Mines | Core integrity fell below 50% 548 | -10/Mines | Core integrity fell below 20% 549 | -10/Mines | Destroyed by as-56935 with Assembled Rifle Last Messages --------------- 00534_ P8-XUU(h) system corrupted by crushing effect. 00534_ as-59459 destroyed. 00534_ P8-XUU(h) destroyed. 00536_ Destroyed Asb. F-torch. 00538_ as-66890 destroyed. 00538_ as-35855 destroyed. 00538_ Destroyed Asb. F-torch. 00538_ as-26282 destroyed. 00538_ as-29584 destroyed. 00540_ as-73286 destroyed. 00540_ as-17951 destroyed. 00540_ as-21989 destroyed. 00541_ The unstable cave ceiling collapses. 00542_ as-86618 destroyed. 00542_ as-55169 destroyed. 00544_ C-30 ARC bursts open, deploying its payload. 00544_ D-53 Grenadier unfolds itself. 00544_ Destroyed Terrain Scanner. 00548_ The unstable cave ceiling collapses. 00548_ U-05 Engineer destroyed. Map ----- +----------------------------------------------------+ | ?????????????????????????????????????????????????? | | ?????????????????????????????????????????????????? | | ?????????????????????????????????????????????????? | | ?????????????????????????????????????????????????? | | ?????????????????????????????????????????????????? | | ?????????????????????????????????????????????????? | | ?????????????????????????????????????????????????? | | ?????????????????????????????????????????????????? | | ??????????????????????????????????????????? ?????? | | ??????????????????????????????????????????? ?????? | | ?????????????????????????????????????????? ???? | | ?????????????????????????????????????????? ##???? | | ?????????????????????????????????????????? ##???? | | ?????????????????????????????????????????? ##???? | | ????????????????????????????????????????## ##???? | | ???????????????????????????????????????### ###??? | | ??????????????????????????????????????#### ####?? | | ?????????????????????????????????????#### ###?? | | ???????????????????????????????????##### ###? | | ????????????###???????###########?##### """ ###? | | ????????????## ??? ################## """ ##? | | ?????????#### ##### ##### """ ##? | | ????????###### # # # ## ### | | ???????###"" ## ### | | ???????#### # d #### ## | | ???????## @ d #### # | | ??? % ##### # | | ??? % % % ########### ## | | ??? % ] #######?### ## | | ???? aa a ### # ####??????### ### | | ???? ## ######### #????#### #### | | ????? ??#### ##??########### ##??### ####? | | ??????????#### ##????????##### ##??## ####?? | | ???????????### ????????????????? ##??## ####??? | | ????????????## ??????????????????????### ####???? | | ?????????????????????????????????????#######?????? | | ??????????????????????????????????????#####??????? | | ?????????????????????????????????????????????????? | | ?????????????????????????????????????????????????? | | ?????????????????????????????????????????????????? | | ?????????????????????????????????????????????????? | | ?????????????????????????????????????????????????? | | ?????????????????????????????????????????????????? | | ?????????????????????????????????????????????????? | | ?????????????????????????????????????????????????? | | ?????????????????????????????????????????????????? | | ?????????????????????????????????????????????????? | | ?????????????????????????????????????????????????? | | ?????????????????????????????????????????????????? | | ?????????????????????????????????????????????????? | +----------------------------------------------------+ Best States ------------- Heat Dissipation 25 Energy Generation 14 Energy Capacity 280 Matter Stores 300 Matter Capacity 300 Sight Range 18 Robot Scan Range 16 Terrain Scan Density 10 Evasion (%) 55 Item Schematics ----------------- None Robot Schematics ------------------ None Fabricated ------------ Nothing Alien Tech Used ----------------- None Achievements -------------- None Challenges ------------ None RPGLIKE | -11 -10 -10 --------- Run | Jun Mat Min Levels Raised . | . . . XP Earned 4085 | 3000 585 500 XP Spent 2850 | 2850 . . Upgrades 12 | 12 . . Propulsion Slot 1 | 1 . . Utility Slot 1 | 1 . . Inventory Capacity 2 | 2 . . Sensor Range 8 | 8 . . Protomatter Created 18 | . 13 5 Protomatter Decayed 23 | . 13 10 Game ------ Seed PhysicsFlightDoomcannon Manual? 0 Play Time 00:08:00 Cumulative 54.6 hours Start 2023.08.10 @ 13:08:02 End 2023.08.10 @ 13:16:26 Sessions 1 Manual Loads 0 Difficulty Rogue Special Mode Winter2019/RPGLIKE Game No. 59 Rogue 56 Adventurer 1 Explorer 2 Win Type - Total 1 Types 1/0/0/0/0/0/0/0/0 Lore% 44 Gallery% 46 Achievement% 39 Wizard Run 0 Options --------- ASCII 0 Keyboard 0 Movement Mouse Keybinds 0 Fullscreen 2 Font 18/Terminus Map View 76x50 Tactical HUD 1 Map Filters NONE Filters NONE Steam 1 RUN: e77412ed-de74-4300-b9f7-768fd0105da5